Cogmind - Beta 14 @@@ ROGUE MODE // 2025.03.11 @ 09:33:21 Player: Skergy Result: Destroyed by D6-E63(R) with Subdweller Shrapnel Launcher Performance ------------- Evolutions (0) 0 Regions Visited (2) 400 Robots Destroyed (20) 100 Value Destroyed (509) 509 Prototype IDs (2) 40 Alien Tech Used (0) 0 Bonus (0) 0 TOTAL SCORE: 1049 Bonus ------- None Cogmind --------- Core Integrity 0/250 Matter 233/300 Energy 160/160 System Corruption 8% Temperature Cool (0) Movement Rolling (100) Location -10/Subcaves Parts ------- > --- POWER (1) -------- Light Nuclear Core > --- PROPULSION (2) --- Compact Wheel Compact Wheel > --- UTILITY (2) ------ Large Storage Unit Core Shielding > --- WEAPON (2) ------- (None) > --- INVENTORY (15) --- Light Treads Small Storage Unit High-capacity Matter Pod (200) Visual Processing Unit Visual Processing Unit Core Shielding Datajack Mining Laser Mining Laser Peak State ------------ > --- POWER ------------ Light Nuclear Core > --- PROPULSION ------- Light Treads Light Treads > --- UTILITY ---------- Small Storage Unit Core Shielding > --- WEAPON ----------- Medium Laser Light Assault Rifle > --- INVENTORY -------- Light Ion Engine Aluminum Leg Aluminum Leg Wheel Compact Wheel Visual Processing Unit Small Laser Grenade Launcher [Rating: 9] Favorites ----------- Power Light Ion Engine Engine Light Ion Engine Power Core Light Nuclear Core Propulsion Light Treads Treads Light Treads Wheel Compact Wheel Utility Core Shielding Storage Large Storage Unit Protection Core Shielding Weapon Assault Rifle Energy Gun Medium Laser Ballistic Gun Assault Rifle Launcher Grenade Launcher Special Weapon Mining Laser Build | -11 -10 -10 ------- Run | Yrd Mat Sub Slots Evolved . | . . . Power . | . . . Propulsion . | . . . Utility . | . . . Weapon . | . . . Parts Attached 30 | 6 17 7 Power 5 | 1 3 1 Engine 3 | 1 2 . Core 2 | . 1 1 Reactor . | . . . Propulsion 7 | 2 3 2 Treads 2 | 2 . . Leg . | . . . Wheel 5 | . 3 2 Hover . | . . . Flight . | . . . Utility 6 | 1 5 . Device . | . . . Storage 2 | 1 1 . Processor . | . . . Hackware . | . . . Protection 4 | . 4 . Artifact . | . . . Weapon 12 | 2 6 4 Energy Gun 1 | 1 . . Energy Cannon . | . . . Ballistic Gun 7 | 1 3 3 Ballistic Cannon . | . . . Launcher 2 | . 1 1 Special Weapon 2 | . 2 . Impact Weapon . | . . . Slashing Weapon . | . . . Piercing Weapon . | . . . Special Melee Weapon . | . . . Unidentified Prototypes . | . . . Parts Lost 15 | . 8 7 Power 3 | . 2 1 Propulsion 4 | . 2 2 Utility 1 | . 1 . Weapon 7 | . 3 4 Highest Loss Streak 7 | . 5 7 To Critical Strikes . | . . . Average Slot Usage (%) 97 | . 98 77 Engine 8 | . 8 5 Core 5 | . 5 7 Treads 12 | . 13 . Wheel 14 | . 14 28 Storage 14 | . 14 14 Protection 13 | . 13 14 Energy Gun 6 | . 6 . Ballistic Gun 15 | . 15 2 Launcher 1 | . 1 1 Special Weapon 3 | . 2 3 Peak Build Rating 9 | 6 9 8 Average Rating 7 | 4 8 7 On Entrance 4 | . 6 7 Naked Turns . | . . . Heaviest Build 29 | 11 29 28 Greatest Support 40 | 40 40 32 Greatest Overweight (x) 1 | . 1 1 Average Overweight (x) . | . . . Largest Inventory Capacity 15 | 8 15 15 Average Capacity 11 | 6 11 15 Most Carried 15 | 6 15 15 Average Carried 9 | 3 9 10 Final Capacity 15 | 8 15 15 Final Carried 15 | 6 15 9 Class Distribution -------------------- 100% | Mutant Dominant Class ---------------- Mutant | -10/Materials Mutant | -10/Subcaves Resources | -11 -10 -10 ----------- Run | Yrd Mat Sub Matter Collected 891 | 260 631 . Remotely . | . . . Salvage Created 718 | . 698 20 Parts 37 | . 35 2 Haulers Intercepted . | . . . Recyclers Shooed 2 | . 2 . Parts Field Recycled . | . . . Retrieved Matter . | . . . Parts Self-Destructed 2 | . . 2 Prevented . | . . . Kills | -11 -10 -10 ------- Run | Yrd Mat Sub Combat Hostiles Destroyed 13 | . 12 1 Guns 12 | . 11 1 AOE 1 | . 1 . Classes Destroyed 7 | . 6 1 Builder 1 | . 1 . Recycler 2 | . 2 . Operator 1 | . 1 . Watcher 3 | . 3 . Swarmer 3 | . 3 . Grunt 9 | . 9 . Subdweller 1 | . . 1 Best Kill Streak 4 | . 4 1 Combat Bots Only 3 | . 3 1 Max Kills in Single Turn 1 | . 1 1 Gunslinging . | . . . Exploded 1 | . 1 . Melee . | . . . Uniques/NPCs Destroyed . | . . . Combat | -11 -10 -10 -------- Run | Yrd Mat Sub Hostile Shots Fired 125 | . 96 29 Missed 34 | . 26 8 Damage Taken 1871 | . 1243 628 Core 279 | . 107 172 Absorbed by Shields . | . . . Redirected to Shielding 45 | . 17 28 Core Remaining (%) 100 | 100 . . Volleys Fired 82 | . 77 5 Largest 2 | . 2 2 Hottest 100 | . 100 40 Shots Fired 142 | . 133 9 Gun 134 | . 125 9 Cannon . | . . . Launcher 3 | . 3 . Special 5 | . 5 . Kinetic 88 | . 79 9 Thermal 51 | . 51 . Explosive 3 | . 3 . Electromagnetic . | . . . Robot Hit Streak 12 | . 12 8 Robot Miss Streak 5 | . 5 1 Penetration Max . | . . . Secondary Targets 2 | . 2 . Max Gunslinging Chain 1 | . 1 . Shots Hit Robots 83 | . 75 8 Core Hits 36 | . 34 2 Critical Kills . | . . . Critical Parts Destroyed . | . . . Critical Strikes 1 | . 1 . Burn 1 | . 1 . Melee Attacks . | . . . Impact . | . . . Slashing . | . . . Piercing . | . . . Sneak Attacks . | . . . Combat Hostiles . | . . . Follow-up Attacks . | . . . Damage Inflicted 1050 | . 945 105 Guns 1003 | . 898 105 Cannons . | . . . Explosions 47 | . 47 . Melee . | . . . Ramming . | . . . Kinetic 663 | . 558 105 Thermal 340 | . 340 . Explosive 47 | . 47 . Electromagnetic . | . . . Impact . | . . . Slashing . | . . . Piercing . | . . . Highest Corruption 8 | . 8 8 Average Corruption 4 | . 4 8 Corruption Purged . | . . . Corruption Blocked . | . . . Effects 36 | . 33 3 Message Errors 6 | . 5 1 Matter Fused 13 | . 12 1 Heat Flow Errors 3 | . 3 . Energy Discharges 3 | . 2 1 Parts Rejected 1 | . 1 . Parts Fused 2 | . 2 . Data Loss (minor) 5 | . 5 . Misfires 3 | . 3 . Overload Shots . | . . . Overflow Damage . | . . . Projectiles . | . . . Explosions . | . . . Melee . | . . . Knockbacks . | . . . Impact . | . . . Kinetic . | . . . Secondary . | . . . Self-Inflicted Damage 68 | . 68 . Shots 2 | . 2 . Rammed . | . . . Targets Rammed . | . . . Kicked . | . . . Crushed . | . . . Highest Temperature 361 | . 361 . Average Temperature 129 | . 129 . Received Heat Transfer 483 | . 381 102 Effects 1 | . 1 . Energy Bleed 1 | . 1 . Siege Activations . | . . . Robots Corrupted . | . . . Combat Hostiles . | . . . Parts Fried . | . . . Impact Corruptions . | . . . Robots Melted . | . . . Combat Hostiles . | . . . Parts Melted 5 | . 5 . Heat Transferred 1073 | . 1073 . Parts Sabotaged . | . . . Parts Stolen . | . . . Parts Stripped . | . . . Power Chain Reactions . | . . . Alert | -11 -10 -10 ------- Run | Yrd Mat Sub Peak Influence 165 | . 165 . Initial . | . . . Average 52 | . 54 . Maximum Alert Level . | . . . Low Security (%) 100 | 100 100 . Level 1 . | . . . Level 2 . | . . . Level 3 . | . . . Level 4 . | . . . Level 5 . | . . . High Security . | . . . Max Security . | . . . Squads Dispatched . | . . . Investigation . | . . . Extermination . | . . . Reinforcement . | . . . Assault . | . . . Garrison . | . . . Intercept . | . . . Searches Triggered . | . . . Construction Impeded . | . . . Haulers Reinforced . | . . . Active Scanning Responses . | . . . Cargo Convoy Interrupts . | . . . Stealth | -11 -10 -10 --------- Run | Yrd Mat Sub Distress Signals 1 | . 1 . Communications Jammed . | . . . Distress Signals . | . . . Times Spotted 24 | . 18 6 Peak Tracking Total 5 | . 3 5 Tactical Retreats 1 | . . 1 Traps | -11 -10 -10 ------- Run | Yrd Mat Sub Traps Triggered 2 | . 2 . Indirectly . | . . . Trap Hack Attempts . | . . . Triggered . | . . . Disarmed . | . . . Reprogrammed . | . . . Reused . | . . . Traps Extracted . | . . . Installed . | . . . Triggered . | . . . Machines | -11 -10 -10 ---------- Run | Yrd Mat Sub Machines Disabled . | . . . Max in Single Turn . | . . . Machines Repaired . | . . . Machines Dismantled . | . . . Machines Sabotaged . | . . . Overloaded Fab Kills . | . . . Hacking | -11 -10 -10 --------- Run | Yrd Mat Sub Machines Accessed 9 | . 9 . Terminals 8 | . 8 . Fabricators . | . . . Repair Stations . | . . . Recycling Units 1 | . 1 . Scanalyzers . | . . . Garrison Access . | . . . Total Hacks 25 | . 25 . Successful 17 | . 17 . Failed 8 | . 8 . Catastrophic . | . . . Database Lockouts . | . . . Manual 23 | . 23 . Terminals 24 | . 24 . Fabricators . | . . . Repair Stations . | . . . Recycling Units 1 | . 1 . Scanalyzers . | . . . Garrison Access . | . . . Terminal Hacks 3 | . 3 . Robot Analysis 1 | . 1 . Prototype ID Bank 1 | . 1 . Zone Layout 1 | . 1 . Fabricator Hacks . | . . . Repair Station Hacks . | . . . Recycling Unit Hacks . | . . . Scanalyzer . | . . . Garrison Access Hacks . | . . . Unauthorized Hacks 14 | . 14 . Terminals 13 | . 13 . Track 3 | . 3 . Assimilate 4 | . 4 . Botnet 5 | . 5 . Operators 1 | . 1 . Fabricators . | . . . Repair Stations . | . . . Recycling Units 1 | . 1 . Reject 1 | . 1 . Scanalyzers . | . . . Garrison Access . | . . . Data Cores Recovered 1 | . 1 . Used . | . . . Hacking Detections 8 | . 8 . Full Trace Events . | . . . Feedback Events . | . . . Feedback Blocked . | . . . Robot Schematics Acquired . | . . . Robots Built . | . . . Authchips . | . . . Time . | . . . Total Robot Build Rating . | . . . Part Schematics Acquired . | . . . Parts Built . | . . . Authchips . | . . . Time . | . . . Total Part Build Rating . | . . . Parts Repaired . | . . . Time . | . . . Parts Recycled . | . . . Recycled Matter . | . . . Retrieved Matter . | . . . Retrieved Components . | . . . Parts Scanalyzed . | . . . Part Schematics Acquired . | . . . Parts Damaged . | . . . Bothacking | -11 -10 -10 ------------ Run | Yrd Mat Sub Used RIF Installer . | . . . Robots Hacked . | . . . Non-combat . | . . . Combat . | . . . Robot Hacks Applied . | . . . Relay Couplers Released . | . . . Fabnet Peak Effective % . | . . . Robots Rewired . | . . . Allies Hacked . | . . . Hacks Repelled . | . . . Allies | -11 -10 -10 -------- Run | Yrd Mat Sub Total Allies 1 | . 1 . Largest Group 1 | . 1 1 Highest-Rated Group 10 | . 10 10 Highest-Rated Ally 10 | . 10 10 Total Orders . | . . . Ally Attacks . | . . . Total Damage . | . . . Kills . | . . . Allies Corrupted . | . . . Allies Melted . | . . . Intel | -11 -10 -10 ------- Run | Yrd Mat Sub Robot Analysis Total 1 | . 1 . Derelict Logs Recovered 1 | . . 1 Drone Launches . | . . . Drone Recoveries . | . . . Exploration | -11 -10 -10 ------------- Run | Yrd Mat Sub Turns Passed 2112 | 73 1933 106 Spaces Moved 1233 | 41 1110 82 Core 6 | 6 . . Treads 512 | 35 477 . Legs . | . . . Wheels 715 | . 633 82 Hover . | . . . Flight . | . . . Fastest Speed 50 | 50 90 90 Average Speed 125 | 143 127 98 Slowest Speed 160 | 160 160 105 Overloaded Moves . | . . . Propulsion Burnouts . | . . . Robots Hopped . | . . . Cave-ins Triggered 1 | . 1 . Exploration Rate (%) 35 | 5 94 8 Regions Visited 2 Branch Regions 1 Pre-discovered Areas . | . . . Known Exits Taken . | . . . Unknown Exits Taken 2 | 1 1 . Scrap Searched . | . . . Spaces Dug 13 | . 13 . Terrain Destroyed 28 | . 28 . Melee . | . . . Projectile 5 | . 5 . AOE 23 | . 23 . Terrain Rammed . | . . . Walls Destroyed . | . . . Machines Disabled . | . . . Actions | -11 -10 -10 --------- Run | Yrd Mat Sub Total 1646 | 52 1496 98 Wait 274 | . 270 4 Move 1231 | 40 1109 82 Hop . | . . . Pick Up 23 | 6 17 . Fast Attach 8 | 6 2 . Attach 14 | . 8 6 Detach 1 | . 1 . Swap 8 | . 7 1 Drop 5 | . 5 . Fire 82 | . 77 5 Melee . | . . . Ram . | . . . Kick . | . . . Crush . | . . . Escape Stasis . | . . . Rewire . | . . . Trap . | . . . Miscellaneous . | . . . Route ------- -11/Scrapyard -10/Materials (discovered 4 exits: [*Mat x2] / [*Min] / [*Sub]) -10/Subcaves History --------- Turn | Location | Event 10 | -11/Scrapyard | Discovered new exit (range 15) 74 | -11/Scrapyard | Entered Materials 313 | -10/Materials | Build established: Mutant 408 | -10/Materials | Discovered new exit (range 12) 904 | -10/Materials | Discovered new exit (range 10) 1048 | -10/Materials | Lost 5 parts (1p2n2w) 1090 | -10/Materials | Discovered new exit (range 6) 1426 | -10/Materials | Crushed by falling debris 1457 | -10/Materials | Lost 3 parts (1p1u1w) 1998 | -10/Materials | Discovered new exit (range 9) 2007 | -10/Materials | Entered Subcaves 2007 | -10/Subcaves | Accompanied by 1 ally 2012 | -10/Subcaves | A swath of the cavern ceiling suddenly collapsed 2031 | -10/Subcaves | Core integrity fell below 50% 2032 | -10/Subcaves | Ambushed by Subdweller buried in earth 2033 | -10/Subcaves | Ambushed by Subdwellers from Twisted Machinery 2043 | -10/Subcaves | Core integrity fell below 20% 2080 | -10/Subcaves | Lost 7 parts (1p2n4w) 2113 | -10/Subcaves | Destroyed by D6-E63(R) with Subdweller Shrapnel Launcher Last Messages --------------- 02030_ Grenade Launcher destroyed. 02032_ Wheel destroyed. 02033_ TA-4QX(R) emerges from the Twisted Machinery. 02033_ QS-PQ6(R): "HIDIE!" 02034_ System corrupted: Matter fused (-5). 02034_ Technician 1a destroyed. 02035_ Subatomizers dissect the Lgt. Ion Engine. 02037_ Assault Rifle destroyed. 02038_ QS-PQ6(R) destroyed. 02043_ Lgt. Ion Engine destroyed. 02046_ Assault Rifle destroyed. 02048_ Subatomizers dissect the Sub. Monowheel. 02048_ Com. Wheel destroyed. 02049_ Assault Rifle destroyed. 02053_ PR-NWR(R) destroyed. 02069_ System corrupted: Energy discharge (-46). 02079_ Acquired derelict log, extracted data. Data stored: Storage entrances (x1). 02102_ V5 PYUJFKD2M2JBP#AKTUHXJV 02112_ A4-4MX(u) builds Twisted Machinery. Map ----- +----------------------------------------------------+ | ????## " " " """ ????????????????????? | | ?????##" " # "?????????????????????? | | ??????## #### " ##? " ??????????????????????? | | ??????## ##?##" ###???## ????????????????????????? | | ??????##"####" ##????????????????????????????????? | | ?????###"#"" ##????????????????????????????????? | | ?????#"##"" #????????????????????????????????? | | ?????# # #????????????????????????????????? | | ?????## ###????????????????????????????????? | | ??????# ####??????"?"##???????????????????????? | | ??????# ##???##???? "" #???????????????????????? | | ??????# #??### ????""" ##????"#????????????????? | | ??????# #### ###?"#" #???? #????????????????? | | ??????# ## ### ##??? #????????????????? | | ??????# ##? ## ##?# #????? ??????????? | | ??????## #???# " ## #??## ??????????? | | ???????# ####### "" # ## ??????????? | | ???????# ### ## " ??????????? | | ???????# ??????????? | | ???????# u ??????????? | | ??????# ^# ### ### ##???????????????? | | ??????# ###?###?### ##??? # ?????????? | | ??????# #?????????## ##R #### ???????????? | | ??????# ??????????#### ## # ??????????? | | ??????## ???????????### #?????????????? | | ???????## ?########## @ #?????????????? | | ????????# # ## ## ##?????????????? | | ????????# ^ # ##?? #?????????????? | | ?????????## ####????##?????????????? | | ??????????### # # ## " #?????????????????????? | | ????????????########### ""##?????????????????????? | | ??????????????????????#"""#??????????????????????? | | ?????????????????????? ""#??????????????????????? | | ?????????????????????? "#??????????????????????? | | ????????????????????? #??????????????????????? | | ????????????????????? # # ??????????????????????? | | ????????????????????? ??????????????????????? | | ????????????????????? ???????????????????????? | | ????????????????????? ## ???????????????????????? | | ??????????????????????#??????????????????????????? | | ?????????????????????????????????????????????????? | | ?????????????????????????????????????????????????? | | ?????????????????????????????????????????????????? | | ?????????????????????????????????????????????????? | | ?????????????????????????????????????????????????? | | ?????????????????????????????????????????????????? | | ?????????????????????????????????????????????????? | | ?????????????????????????????????????????????????? | | ?????????????????????????????????????????????????? | | ?????????????????????????????????????????????????? | +----------------------------------------------------+ Best States ------------- Heat Dissipation 25 Energy Generation 14 Energy Capacity 160 Matter Stores 300 Matter Capacity 300 Sight Range 16 Terrain Scan Density 10 Core Shielding 20 Evasion (%) 42 Recoil Reduction 2 Item Schematics ----------------- None Robot Schematics ------------------ None Fabricated ------------ Nothing Alien Tech Used ----------------- None Achievements -------------- None Challenges ------------ None Game ------ Seed CompositeCompactTreads Manual? 0 Play Time 00:17:37 Cumulative 65.5 hours Start 2025.03.11 @ 09:17:08 End 2025.03.11 @ 09:33:21 Sessions 1 Manual Loads 0 Difficulty Rogue Special Mode None Game No. 67 Rogue 67 Adventurer 0 Explorer 0 Win Type - Total 2 Types 2/0/0/0/0/0/0/0/0 Lore% 38 Gallery% 43 Achievement% 39 Wizard Run 0 Options --------- Layout 0 ASCII 0 Keyboard 1 Movement Numpad Keybinds 0 Fullscreen 1 Font 24/Terminus Map View 76x50 Zoom Use 0% Tactical HUD 1 Map Filters NONE Filters NONE Steam 1 RUN: 1268f35e-46a2-4eab-a1ad-cae93c10156b